bitfinex/quotes_SOLUSD_20250518
["timestamp","ask_amount","ask_price","bid_price","bid_amount"]
[1747575465012,5.82071624,171.81,171.72,1.6353]
[1747575465212,5.82071624,171.81,171.76,26.0]
[1747575465419,39.94635662,171.84,171.77,19.34]
[1747575465719,21.29670776,171.84,171.78,5.82139946]
[1747575465908,5.81902822,171.85,171.79,26.0]
[1747575466542,5.8184529,171.87,171.81,26.0]
[1747575466823,211.11732767,171.91,171.81,26.0]
[1747575466824,21.29670776,171.89,171.81,26.0]
[1747575467326,21.29670776,171.88,171.81,26.0]
[1747575467912,5.81835107,171.87,171.8,26.0]
[1747575468432,5.81835107,171.87,171.8,31.8205929]
[1747575469128,27.11438185,171.89,171.8,31.8205929]
[1747575469301,5.81767409,171.89,171.8,31.8205929]
[1747575469512,24.46707484,171.9,171.8,31.8205929]
[1747575469916,45.7637826,171.9,171.8,31.8205929]
[1747575470114,45.7637826,171.9,171.81,3.3035189]
[1747575470436,21.29670776,171.89,171.81,3.3035189]
[1747575470928,5.81789875,171.89,171.82,31.82004423]
[1747575471106,5.81789875,171.89,171.83,19.34]
[1747575473033,27.11460651,171.89,171.83,19.34]
[1747575474226,5.81789875,171.89,171.83,19.34]
[1747575475423,5.81740311,171.9,171.83,25.15963382]
[1747575476140,27.11411087,171.9,171.83,25.15963382]
[1747575476344,5.81740311,171.9,171.83,25.15963382]
[1747575476540,27.11411087,171.9,171.83,25.15963382]
[1747575476840,27.11411087,171.9,171.83,19.34]
[1747575478416,26.11411087,171.9,171.83,19.34]
[1747575479018,26.11411087,171.9,171.83,25.15946517]
[1747575480244,26.11411087,171.9,171.83,19.34]
[1747575480658,27.11555281,171.86,171.82,26.0]
[1747575480937,27.11555281,171.86,171.85,26.0]
[1747575481113,5.81884505,171.86,171.85,26.0]
[1747575481313,5.81884505,171.86,171.83,26.0]
[1747575481513,5.81884505,171.86,171.83,45.34]
[1747575481924,5.81884505,171.86,171.8,27.6512]
[1747575482244,5.81884505,171.86,171.84,26.0]
[1747575482615,5.81835107,171.87,171.83,45.8]
[1747575482842,27.11505883,171.87,171.83,45.8]
[1747575483037,21.29670776,171.86,171.83,19.8]
[1747575483242,21.29670776,171.84,171.81,26.0]
[1747575483517,21.29670776,171.84,171.82,19.8]
[1747575484331,21.29670776,171.83,171.82,19.8]
[1747575484528,18.64964886,171.86,171.82,19.8]
[1747575484735,21.29670776,171.84,171.82,19.8]
[1747575484940,5.81902822,171.85,171.82,19.8]
[1747575484941,27.11573598,171.85,171.82,19.8]
[1747575485721,19.11204633,171.85,171.81,45.8]
[1747575485921,5.81902822,171.85,171.81,45.8]
[1747575486146,19.11204633,171.85,171.81,45.8]
[1747575486349,13.29301811,171.85,171.81,51.62035819]
[1747575486652,13.29301811,171.85,171.81,45.8]
[1747575487147,13.29301811,171.89,171.81,45.8]
[1747575488019,13.29301811,171.89,171.81,51.620264]
[1747575488215,5.81733566,171.9,171.81,51.620264]
[1747575488419,13.29301811,171.89,171.81,51.620264]
[1747575488959,13.29301811,171.9,171.81,66.17122145]
[1747575489130,13.29301811,171.91,171.81,66.17122145]
[1747575489535,24.46566822,171.94,171.82,1.5899]
[1747575489733,16.06109534,171.99,171.86,26.0]
[1747575489948,16.06109534,171.99,171.9,26.0]
[1747575490156,13.29301811,171.91,171.88,26.0]
[1747575490458,14.81791811,171.99,171.89,1.5899]
[1747575490459,19.10734197,171.99,171.89,1.5899]
[1747575490625,19.10734197,171.99,171.92,26.0]
[1747575490825,19.10734197,171.99,171.93,19.8]
[1747575491148,13.29301811,171.94,171.91,26.0]
[1747575491337,13.29301811,171.93,171.91,26.0]
[1747575491538,12.79301811,171.93,171.91,26.0]
[1747575491848,5.81432386,171.99,171.92,26.0]
[1747575493050,5.81432386,171.99,171.95,26.0]
[1747575495166,13.29301811,171.97,171.86,9.48191141]
[1747575495340,13.29301811,171.94,171.87,45.47835107]
[1747575495655,21.24944384,171.93,171.88,39.66]
[1747575495843,21.24944384,171.93,171.89,26.0]
[1747575496048,21.24944384,171.92,171.89,26.0]
[1747575496242,21.24944384,171.92,171.88,39.66]
[1747575496443,27.06621467,171.92,171.89,26.0]
[1747575496638,27.06621467,171.92,171.88,39.66]
[1747575496639,21.24944384,171.91,171.88,39.66]
[1747575496851,21.24944384,171.91,171.88,26.0]
[1747575497047,21.24944384,171.91,171.88,45.12173014]
[1747575498950,27.06645502,171.91,171.88,45.12173014]
[1747575499645,21.24944384,171.91,171.88,45.12173014]
[1747575499850,27.0661843,171.92,171.88,45.12173014]
[1747575500047,21.24944384,171.91,171.88,45.12173014]
[1747575500536,27.06684132,171.9,171.87,19.8]
[1747575500864,21.24944384,171.91,171.87,19.8]
[1747575501558,27.06651778,171.91,171.86,26.0]
[1747575501756,27.06651778,171.91,171.87,19.8]
[1747575501937,21.24944384,171.91,171.87,19.8]
[1747575502137,27.06656351,171.91,171.87,19.8]
[1747575502561,18.64964886,171.93,171.87,19.8]
[1747575502765,21.24944384,171.91,171.87,19.8]
[1747575502969,5.81429152,171.99,171.91,26.0]
[1747575503156,5.81429152,171.99,171.92,19.76]
[1747575503341,5.81429152,171.99,171.93,19.8]
[1747575503846,27.06373536,171.99,171.93,19.8]
[1747575505066,27.06373536,171.99,171.93,25.61621755]
[1747575505472,21.24944384,171.98,171.93,25.61621755]
[1747575505964,21.24944384,171.98,171.93,5.81621755]
[1747575506162,27.06407345,171.98,171.94,39.52]
[1747575506539,27.06407345,171.98,171.92,5.81665891]
[1747575506746,27.06407345,171.98,171.93,39.52]
[1747575506942,119.34245904,172.0,171.93,39.52]
[1747575507262,140.59190288,172.0,171.94,26.0]
[1747575508174,21.24944384,171.99,171.94,26.0]
[1747575509272,119.34245904,172.0,171.94,31.81592536]
[1747575509273,94.8787878,172.0,171.94,31.81592536]
[1747575509445,121.94219436,172.0,171.94,31.81592536]
[1747575509642,21.24944384,171.99,171.94,31.81592536]
[1747575510288,94.8787878,172.0,171.94,31.81592536]
[1747575510454,116.12823164,172.0,171.94,31.81592536]
[1747575512153,94.8787878,172.0,171.94,31.81592536]
[1747575512348,121.94229987,172.0,171.94,31.81592536]
[1747575512981,116.12823164,172.0,171.94,31.81592536]
[1747575514072,21.24944384,171.99,171.95,39.4]
[1747575514452,21.24944384,171.99,171.94,26.0]
[1747575514675,21.24944384,171.98,171.94,65.4]
[1747575515352,21.24944384,171.98,171.94,26.0]
[1747575515563,21.24944384,171.97,171.94,65.38]
[1747575515753,21.24944384,171.97,171.95,26.0]
[1747575516114,21.24944384,171.96,171.93,26.0]
[1747575516279,21.24944384,171.96,171.86,22.57631517]
[1747575516581,18.64964886,171.97,171.87,45.17835107]
[1747575516582,27.06578132,171.93,171.87,45.17835107]
[1747575516969,27.06578132,171.93,171.88,39.36]
[1747575517154,5.81633748,171.93,171.89,26.0]
[1747575517361,21.24944384,171.93,171.89,26.0]
[1747575517764,13.28111623,171.93,171.89,26.0]
[1747575518956,13.28111623,171.93,171.89,31.81763894]
[1747575519254,13.28111623,171.94,171.89,31.81763894]
[1747575519654,21.24458473,171.95,171.89,31.81763894]
[1747575521191,24.46470872,171.97,171.89,31.81763894]
[1747575521372,21.24458473,171.95,171.89,31.81763894]
[1747575522796,18.64964886,171.99,171.89,31.81763894]
[1747575522974,21.24458473,171.97,171.89,31.81763894]
[1747575524074,21.24458473,171.97,171.89,46.36182417]
[1747575524287,21.24458473,171.99,171.89,46.36182417]
[1747575524485,100.69283986,172.0,171.89,46.36182417]
[1747575524788,121.93734857,172.0,171.89,127.06182417]
[1747575524987,21.24458473,171.99,171.89,127.06182417]
[1747575525169,21.24458473,171.98,171.89,127.06182417]
[1747575525374,18.64964886,171.99,171.93,26.0]
[1747575525688,21.24458473,171.98,171.94,39.36]
[1747575525992,18.64964886,171.94,171.86,8.0301]
[1747575526286,18.64964886,171.97,171.87,39.36]
[1747575526486,21.24458473,171.93,171.88,26.0]
[1747575527063,21.24458473,171.92,171.89,26.0]
[1747575527263,21.24458473,171.92,171.89,65.36]
[1747575527577,21.24458473,171.91,171.89,45.7]
[1747575527767,1.5988,171.95,171.89,45.7]
[1747575527966,21.24458473,171.94,171.89,45.7]
[1747575528281,24.4647032,171.97,171.89,45.7]
[1747575528480,21.24458473,171.96,171.89,45.7]
[1747575528663,21.24458473,171.95,171.89,45.7]
[1747575528858,21.24458473,171.92,171.88,19.7]
[1747575529094,21.24458473,171.89,171.88,19.7]
[1747575529262,21.24458473,171.89,171.85,39.36]
[1747575529472,21.24458473,171.88,171.85,39.36]
[1747575530787,21.24458473,171.87,171.85,19.7]
[1747575530998,21.24458473,171.87,171.83,39.36]
[1747575531287,21.24458473,171.85,171.81,19.7]
[1747575531493,21.24458473,171.85,171.82,19.66]
[1747575531999,21.24458473,171.85,171.81,39.38]
[1747575532697,27.06368117,171.85,171.81,39.38]
[1747575532869,5.81909644,171.85,171.81,39.38]
[1747575533194,21.24458473,171.85,171.81,39.38]
[1747575533376,21.24458473,171.84,171.8,26.0]
[1747575533576,21.24458473,171.84,171.81,39.42]
[1747575536275,27.06398041,171.84,171.81,39.42]
[1747575536475,27.06398041,171.84,171.79,145.16]
[1747575536476,21.24458473,171.82,171.79,145.16]
[1747575536697,21.24458473,171.8,171.74,8.2125]
[1747575537011,7.34429568,171.84,171.66,128.20596673]
[1747575537012,18.64964886,171.83,171.76,45.72]
[1747575537184,21.24458473,171.8,171.76,45.72]
[1747575537370,21.24458473,171.8,171.76,65.38]
[1747575537889,18.64964886,171.83,171.76,71.20201261]
[1747575538206,21.24458473,171.82,171.76,71.20201261]
[1747575539896,21.24458473,171.81,171.76,71.20201261]
[1747575540279,5.81970552,171.83,171.76,65.38]
[1747575540475,21.24458473,171.79,171.76,26.0]
[1747575540670,21.24458473,171.79,171.76,65.36]
[1747575540886,21.24458473,171.78,171.76,26.0]
[1747575541079,21.24458473,171.77,171.76,26.0]
[1747575541385,21.24458473,171.79,171.75,19.72]
[1747575541583,21.24458473,171.8,171.75,25.54236769]
[1747575541781,13.30125377,171.81,171.75,25.54236769]
[1747575541987,20.17454886,171.84,171.76,39.36]
[1747575541988,13.30125377,171.8,171.76,39.36]
[1747575542912,13.30125377,171.79,171.7,6.6321]
[1747575543073,13.30125377,171.77,171.73,26.0]
[1747575543271,13.30125377,171.79,171.73,26.0]
[1747575543978,1.5249,171.84,171.78,5.82139946]
[1747575544185,19.12006172,171.86,171.78,25.44139946]
[1747575544620,13.30125377,171.85,171.78,25.44139946]
[1747575544822,18.64964886,171.87,171.81,26.0]
[1747575545102,13.30125377,171.85,171.81,45.74]
[1747575545710,13.30125377,171.82,171.72,14.55823159]
[1747575545880,13.30125377,171.79,171.73,45.18309439]
[1747575546301,13.30125377,171.79,171.76,26.0]
[1747575546822,13.30125377,171.8,171.76,26.0]
[1747575547309,18.64964886,171.84,171.76,26.0]
[1747575547506,13.30125377,171.79,171.76,26.0]
[1747575547713,21.28390357,171.79,171.76,26.0]
[1747575548030,21.28390357,171.78,171.74,31.82270242]
[1747575548336,21.28390357,171.78,171.74,5.82270242]
[1747575548510,21.28390357,171.78,171.74,31.82270242]
[1747575549735,21.28390357,171.78,171.74,51.52270242]
[1747575550429,1.6453,171.81,171.74,51.52270242]
[1747575550430,7.4657815,171.81,171.74,51.52270242]
[1747575550635,21.28390357,171.8,171.74,51.52270242]
[1747575550941,21.28390357,171.79,171.74,51.52270242]
[1747575551110,21.28390357,171.78,171.74,51.52270242]
[1747575551898,21.28390357,171.77,171.74,45.7]
[1747575552099,21.28390357,171.77,171.74,26.0]
[1747575552427,21.28390357,171.76,171.74,26.0]
[1747575552806,5.82113373,171.79,171.74,26.0]
[1747575552993,21.28390357,171.77,171.74,26.0]
[1747575553195,5.82113373,171.79,171.74,26.0]
[1747575553399,21.28390357,171.78,171.74,31.8227367]
[1747575553906,24.47046043,171.8,171.74,31.8227367]
[1747575554207,21.28390357,171.78,171.74,31.8227367]
[1747575554633,21.28390357,171.77,171.74,31.8227367]
[1747575554941,21.28390357,171.77,171.74,26.0]
[1747575555433,21.28390357,171.76,171.74,26.0]
[1747575555812,21.28390357,171.75,171.72,45.64]
[1747575557721,21.28390357,171.76,171.72,45.64]
[1747575558333,21.28390357,171.76,171.72,26.0]
[1747575558638,27.10610571,171.76,171.72,26.0]
[1747575559031,21.28390357,171.73,171.71,26.0]
[1747575559207,5.82220214,171.76,171.71,26.0]
[1747575559621,21.28390357,171.74,171.71,26.0]
[1747575560336,21.28390357,171.76,171.71,31.82368476]
[1747575560538,21.28390357,171.77,171.71,31.82368476]
[1747575561345,21.28390357,171.76,171.71,31.82368476]
[1747575562170,21.28390357,171.75,171.71,31.82368476]
[1747575562658,21.28390357,171.76,171.71,31.82368476]
[1747575564538,5.82149887,171.78,171.71,31.82368476]
[1747575564762,21.28390357,171.76,171.71,31.82368476]
[1747575565465,29.00530357,171.81,171.71,31.82368476]
[1747575565645,21.28390357,171.79,171.71,31.82368476]
[1747575565845,5.82081763,171.8,171.71,31.82368476]
[1747575566149,21.28390357,171.82,171.75,26.0]
[1747575566459,21.28390357,171.82,171.76,19.64]
[1747575566633,7.47047286,171.86,171.79,26.0]
[1747575566838,21.28390357,171.85,171.79,26.0]
[1747575567472,1.6515,171.86,171.8,5.82072176]
[1747575567653,14.94357673,171.86,171.8,5.82072176]
[1747575568050,20.76227677,171.86,171.8,5.82072176]
[1747575568242,13.29207673,171.85,171.8,5.82072176]
[1747575568674,14.94357673,171.86,171.8,5.82072176]
[1747575568871,13.29207673,171.86,171.8,5.82072176]
[1747575569078,5.81800548,171.89,171.83,26.0]
[1747575569288,19.11008221,171.89,171.83,45.64]
[1747575569575,40.47231987,171.93,171.87,26.0]
[1747575569576,5.81662443,171.93,171.87,26.0]
[1747575569953,13.29207673,171.93,171.87,26.0]
[1747575570547,5.81605343,171.94,171.87,26.0]
[1747575571047,13.29207673,171.93,171.87,26.0]
[1747575571462,13.29207673,171.92,171.87,26.0]
[1747575571657,5.81605343,171.94,171.87,31.81826635]
[1747575572354,13.29207673,171.94,171.87,31.81826635]
[1747575572781,19.1078079,171.95,171.87,31.81826635]
[1747575572964,13.29207673,171.95,171.87,31.81826635]
[1747575573166,5.81537192,171.96,171.87,31.81826635]
[1747575573474,13.29207673,171.97,171.87,52.79664404]
[1747575573683,13.29207673,171.96,171.87,52.79664404]
[1747575574064,234.7302878,172.0,171.9,26.0]
[1747575574383,13.29207673,171.98,171.91,39.24]
[1747575574588,234.7302878,172.0,171.95,27.6396]
[1747575574589,93.2121878,172.0,171.95,27.6396]
[1747575574751,84.8789878,172.0,171.99,26.0]
[1747575574955,6.43880045,172.0,171.99,65.24]
[1747575575180,93.87878788,172.05,172.03,26.0]
[1747575575688,93.87878788,172.09,172.07,26.0]
[1747575575863,93.87878788,172.09,172.08,39.26]
[1747575576175,9.04778544,172.12,172.11,26.0]
[1747575576387,111.97435877,172.14,172.12,18.64964886]
[1747575576565,14.36428557,172.16,172.15,26.0]
[1747575576964,14.36428557,172.16,172.15,65.28]
[1747575577768,14.36428557,172.16,172.14,26.0]
[1747575577965,14.36428557,172.16,172.15,39.3]
[1747575578190,14.36428557,172.16,172.15,40.10000567]
[1747575579400,115.05307697,172.18,172.15,40.10000567]
[1747575579570,5.80821281,172.17,172.15,40.10000567]
[1747575579897,115.05307697,172.18,172.15,40.10000567]
[1747575580193,93.87878788,172.18,172.16,0.82240847]
[1747575580363,21.17428909,172.17,172.16,0.82240847]
[1747575581189,99.686825,172.18,172.16,0.82240847]
[1747575581490,21.17428909,172.17,172.16,0.82240847]
[1747575581796,93.87878788,172.18,172.16,0.82240847]
[1747575581999,115.05307697,172.18,172.16,0.82240847]
[1747575582294,93.87878788,172.18,172.16,0.82240847]
[1747575582683,93.87878788,172.18,172.14,25.42921525]
[1747575582985,93.87878788,172.18,172.14,19.62]
[1747575583186,93.87878788,172.18,172.14,25.42921269]
[1747575583375,93.87878788,172.18,172.14,19.62]
[1747575584073,93.87878788,172.18,172.14,25.42915881]
[1747575584272,115.05307697,172.18,172.14,19.62]
[1747575584470,21.17428909,172.17,172.14,19.62]
[1747575585007,115.05307697,172.18,172.14,19.62]
[1747575585164,21.17428909,172.15,172.14,19.72]
[1747575585369,21.17428909,172.15,172.14,39.32]
[1747575585604,21.17428909,172.15,172.14,40.13176016]
[1747575586009,21.17428909,172.15,172.14,0.81176016]
[1747575587896,26.98317668,172.15,172.14,0.81176016]
[1747575589833,18.64964886,172.16,172.14,0.81176016]
[1747575590035,21.17428909,172.15,172.11,145.16]
[1747575590315,21.17428909,172.12,172.11,145.16]
[1747575590507,18.64964886,172.16,172.11,145.16]
[1747575590818,21.17428909,172.12,172.07,19.6]
[1747575591117,21.17428909,172.08,172.07,19.6]
[1747575591557,21.17428909,172.08,172.01,5.81361548]
[1747575591845,21.17428909,172.04,172.02,39.34]
[1747575592060,21.17428909,172.03,172.02,19.74]
[1747575592744,5.81231918,172.05,172.0,144.94]
[1747575593148,21.17428909,172.01,172.0,144.94]
[1747575593328,21.17428909,172.01,171.98,19.6]
[1747575593529,21.17428909,171.99,171.98,19.6]
[1747575593834,5.8129396,172.03,171.96,39.4]
[1747575594026,5.8129396,172.03,171.86,4.60212029]
[1747575594027,5.8129396,172.03,171.91,5.81699726]
[1747575594230,21.17428909,172.0,171.96,39.4]
[1747575594742,5.81232149,172.05,171.99,26.0]
[1747575595064,18.64964886,172.06,171.99,26.0]
[1747575595065,18.64964886,172.07,171.99,26.0]
[1747575595253,21.17428909,172.04,171.99,26.0]
[1747575595646,21.17428909,172.05,171.99,26.0]
[1747575595822,21.17428909,172.06,172.0,5.81395348]
[1747575596023,31.09926867,172.1,172.0,5.81395348]
[1747575596261,21.17428909,172.07,172.0,5.81395348]
[1747575596438,21.17428909,172.08,172.0,5.81395348]
[1747575596756,21.17428909,172.07,172.0,20.3488372]
[1747575597132,21.17428909,172.07,172.0,5.81395348]
[1747575597830,21.17428909,172.06,172.0,5.81395348]
[1747575598322,21.17428909,172.05,172.0,5.81395348]
[1747575598741,21.17428909,172.06,172.0,5.81395348]
[1747575598952,6.639,172.1,172.0,5.81395348]
[1747575598953,12.44966149,172.1,172.0,5.81395348]
[1747575599144,21.17428909,172.08,172.0,5.81395348]
[1747575599469,21.17428909,172.1,172.03,26.0]
[1747575599767,21.17428909,172.1,172.04,39.46]
[1747575599964,21.17428909,172.09,172.04,45.27250246]
[1747575600167,21.17428909,172.08,172.04,45.27250246]
[1747575600477,21.17428909,172.08,172.04,39.46]
[1747575601045,21.17428909,172.08,172.03,31.8128924]
[1747575601245,21.17428909,172.06,172.04,39.56]
[1747575601462,18.64964886,172.11,172.04,39.56]
[1747575601663,21.17428909,172.08,172.04,39.56]
[1747575601862,21.17428909,172.07,172.04,39.56]
[1747575602146,18.64964886,172.11,172.04,39.56]
[1747575602147,5.81147425,172.08,172.04,39.56]
[1747575602347,5.81057524,172.1,172.04,39.56]
[1747575602584,21.17428909,172.08,172.04,45.37259057]
[1747575602764,5.81057524,172.1,172.04,39.56]
[1747575603075,21.17428909,172.08,172.04,39.56]
[1747575603371,18.64964886,172.13,172.05,26.0]
[1747575603674,21.17428909,172.11,172.05,26.0]
[1747575603881,21.17428909,172.12,172.05,26.0]
[1747575604177,21.17428909,172.13,172.09,26.0]
[1747575604477,21.17428909,172.13,172.1,39.92]
[1747575604854,22.77148909,172.14,172.1,39.92]
[1747575605559,1.5972,172.14,172.1,39.92]
[1747575605760,22.77148909,172.14,172.1,39.92]
[1747575606076,1.5972,172.14,172.1,45.73028083]
[1747575606258,21.17428909,172.17,172.1,45.73028083]
[1747575606781,115.05307697,172.18,172.13,26.0]
[1747575607083,93.87878788,172.18,172.13,26.0]
[1747575608161,21.17428909,172.17,172.14,39.9]
[1747575608376,99.6867398,172.18,172.11,26.0]
[1747575608572,21.17428909,172.15,172.11,19.94]
[1747575608865,21.17428909,172.14,172.11,19.94]
[1747575609062,99.6867398,172.18,172.11,19.94]
[1747575609266,21.17428909,172.16,172.11,19.94]
[1747575609680,21.17428909,172.15,172.11,19.94]
[1747575609867,21.17428909,172.14,172.11,19.94]
[1747575610064,118.33638866,172.18,172.11,19.94]
[1747575610065,26.98397189,172.13,172.11,19.94]
[1747575610260,26.98397189,172.13,172.09,39.86]
[1747575610456,5.8096828,172.13,172.09,39.86]
[1747575610679,21.17428909,172.11,172.08,65.86]
[1747575610877,21.17428909,172.12,172.08,65.86]
[1747575611077,5.8096828,172.13,172.08,65.86]
[1747575611273,21.17428909,172.12,172.08,65.86]
[1747575611472,21.17428909,172.11,172.08,39.86]
[1747575611690,21.17428909,172.11,172.05,5.81220495]
[1747575611892,21.17428909,172.09,172.06,39.86]
[1747575612272,21.17428909,172.08,172.06,39.86]
[1747575612472,21.17428909,172.08,172.03,144.98]
[1747575612685,21.17428909,172.06,172.03,144.98]
[1747575612886,21.17428909,172.06,172.04,39.86]
[1747575613071,1.6651,172.08,172.03,184.84]
[1747575613272,21.17428909,172.07,172.03,184.84]
[1747575613497,22.83938909,172.08,172.03,184.84]
[1747575613702,21.17428909,172.06,172.03,144.98]
[1747575613993,21.17428909,172.04,172.01,19.92]
[1747575614193,21.17428909,172.03,172.0,39.86]
[1747575614387,21.17428909,172.02,171.99,39.86]
[1747575614597,21.17428909,172.02,171.98,65.86]
[1747575614779,21.17428909,172.02,171.98,19.94]
[1747575614979,21.17428909,172.03,171.98,39.86]
[1747575615172,21.17428909,172.03,171.98,45.67443033]
[1747575615799,21.17428909,172.04,171.98,45.67443033]
[1747575616098,21.17428909,172.03,171.98,45.67443033]
[1747575616302,21.17428909,172.04,172.01,26.0]
[1747575616466,22.83938909,172.08,172.01,26.0]
[1747575616467,1.6651,172.08,172.01,26.0]
[1747575616671,21.17428909,172.07,172.02,39.9]
[1747575616966,21.17428909,172.05,172.01,26.0]
[1747575617174,21.17428909,172.04,172.02,39.9]
[1747575617474,21.17428909,172.03,171.99,3.27723049]
[1747575617677,5.8115883,172.07,171.99,3.27723049]
[1747575617898,21.17428909,172.05,171.99,29.27723049]
[1747575618081,21.17428909,172.06,172.0,3.27723049]
[1747575618996,21.17428909,172.04,172.01,39.9]
[1747575619198,21.17428909,172.02,172.0,43.17723049]
[1747575619495,21.17428909,172.03,172.0,3.27723049]
[1747575619702,21.17428909,172.03,171.99,39.9]
[1747575620199,21.17428909,172.03,171.98,3.27723049]
[1747575620200,21.17428909,172.03,171.98,43.17723049]
[1747575620789,5.81226387,172.05,171.98,48.99176636]
[1747575620990,21.17428909,172.03,171.98,48.99176636]
[1747575621293,5.81284247,172.04,171.98,48.99176636]
[1747575621497,26.98713156,172.04,171.98,48.99176636]
[1747575621702,21.17428909,172.03,171.99,3.27723049]
[1747575622379,21.17428909,172.05,171.99,3.27723049]
[1747575622589,21.17428909,172.04,171.99,3.27723049]
[1747575623705,21.17428909,172.02,172.0,39.92]
[1747575624706,21.17428909,172.03,172.0,39.92]
[1747575625205,21.17428909,172.03,171.98,26.0]
[1747575625510,21.17428909,172.01,171.98,26.0]
[1747575625706,21.17428909,172.0,171.92,225.64]
[1747575625892,21.17428909,172.0,171.93,19.96]
[1747575626088,21.17428909,171.99,171.94,26.0]
[1747575626279,21.17428909,171.97,171.95,39.9]
[1747575626693,21.17428909,171.99,171.95,39.9]
[1747575627301,21.17428909,171.99,171.95,45.71554694]
[1747575628005,18.64964886,172.03,171.95,45.71554694]
[1747575628006,21.17428909,172.0,171.95,45.71554694]
[1747575628308,21.17428909,171.99,171.96,19.94]
[1747575628511,21.17428909,172.0,171.96,19.94]
[1747575628812,21.17428909,171.99,171.96,19.94]
[1747575630321,21.17428909,171.98,171.96,19.94]
[1747575630489,21.17428909,171.98,171.95,39.9]
[1747575631891,22.74718909,171.99,171.95,39.9]
[1747575632090,1.5729,171.99,171.95,45.71557483]
[1747575632293,1.5729,171.99,171.95,5.81557483]
[1747575632524,1.5729,172.03,171.96,19.96]
[1747575632686,21.17428909,172.02,171.96,19.96]
[1747575633014,21.17428909,172.02,171.96,45.96]
[1747575633717,21.17428909,172.01,171.96,26.0]
[1747575633901,1.5729,172.03,171.97,19.92]
[1747575634087,21.17428909,172.0,171.97,19.92]
[1747575635592,21.17428909,172.0,171.95,31.81544863]
[1747575635816,21.17428909,172.0,171.97,19.92]
[1747575635999,26.98825832,172.0,171.97,19.92]
[1747575636831,21.17428909,172.0,171.97,19.92]
[1747575637622,5.81386343,172.01,171.97,19.92]
[1747575638034,21.17428909,172.0,171.97,19.92]
[1747575638246,21.17428909,172.01,171.97,25.7348631]
[1747575638711,21.17428909,172.0,171.97,19.92]
[1747575639435,21.17428909,172.0,171.97,25.7349459]
[1747575639609,21.17428909,172.01,171.97,25.7349459]
[1747575639813,21.17428909,172.02,171.97,25.7349459]
[1747575640536,21.17428909,172.01,171.97,19.92]
[1747575640729,7.38591232,172.03,171.97,25.73484621]
[1747575640930,21.17428909,172.01,171.97,25.73484621]
[1747575641131,7.36435058,172.08,172.0,26.0]
[1747575641306,1.5531,172.08,172.0,26.0]
[1747575641947,1.5531,172.13,172.04,26.0]
[1747575642231,95.43188788,172.18,172.08,26.0]
[1747575642453,95.43188788,172.18,172.05,39.88]
[1747575642454,21.17428909,172.17,172.09,26.0]
[1747575642610,116.60617697,172.18,172.09,26.0]
[1747575642918,95.43188788,172.18,172.09,26.0]
[1747575643716,93.87878788,172.18,172.1,3.28715948]
[1747575643930,93.87878788,172.18,172.14,31.8089677]
[1747575644532,95.50308788,172.23,172.14,31.8089677]
[1747575644533,93.87878788,172.23,172.15,1.16130658]
[1747575644759,93.87878788,172.23,172.18,26.0]
[1747575644919,93.87878788,172.23,172.19,26.0]
[1747575645231,93.87878788,172.23,172.19,66.12]
[1747575645435,93.87878788,172.23,172.18,26.0]
[1747575645635,93.87878788,172.23,172.22,26.0]
[1747575645810,93.87878788,172.23,172.21,40.08]
[1747575646014,93.87878788,172.23,172.19,26.0]
[1747575646244,93.87878788,172.23,172.21,40.08]
[1747575646539,115.05307697,172.23,172.21,40.08]
[1747575646739,93.87878788,172.23,172.21,40.08]
[1747575647033,93.87878788,172.23,172.14,5.80920164]
[1747575647034,21.17428909,172.22,172.14,5.80920164]
[1747575647240,99.68504078,172.23,172.18,26.0]
[1747575647437,120.85932987,172.23,172.15,40.08]
[1747575647610,99.68504078,172.23,172.15,40.08]
[1747575647812,99.68504078,172.23,172.15,45.88887608]
[1747575648018,93.87878788,172.23,172.18,26.0]
[1747575648243,93.87878788,172.23,172.19,40.1]
[1747575648537,93.87878788,172.23,172.2,40.12]
[1747575649440,99.68509759,172.23,172.2,40.12]